Workbook

Sheet Instructions
A6: Instructions
A8: 1.) Find a quiet place and allow yourself the full four hour exam period to practice. Treat this just as you would the real exam.
A10: 2.) Use the Navigator worksheet to see a brief description of each question, its point value and navigate between questions in your preferred order.
A12: 3.) Answer each question either to the side or below the grey question area.
A14: 4.) Use cell B1 on each question worksheet to mark whether you finished the question or not. You should use this feature to
A15: reflect your confidence in your answer. This way you'll know if you're on the money or your guesses were lucky.
A17: 5.) Grade each question harshly. It's better to put in extra reviewing time now than find the examiners aren't as generous as you hoped.
A18: Use increments of 0.25 when scoring; pay attention to the language used in the question and the point value. An "identify" question
A19: is likely 0.25 per item while an "explain" or "briefly justify" gets 0.25 for the item and another 0.25 for the justification.
A21: 6.) Enter your estimated score for each sub-part of a question in the box beneath the sub-part point value. They look like:
A23: 7.) Use the Point Grid to see your score and a breakdown of where you scored well and where you didn't.
A25: 8.) Find the top five questions where you lost the most points. These are the topics you need to review the most intensely in the
A26: next day or so.
A28: 9.) On the BattleActs site → Custom Battles → BattleCards - Prior Exams → Select this exam and mark the cards you got right and wrong.
A29: This allows your Battle Readiness Quotient (BRQ) to track your strengths and weaknesses.
A31: 10.) Use the Reset Exam button on the Point Grid worksheet to clear all of your work ready for a new attempt at this exam later.
A32: slay the beast

Sheet Formula Sheet
A6: FORMULA SHEET
A8: • For the negative binomial distribution (for use on question 3):
B10: ○
B13: ○
A16: • For the shifted Pareto distribution (for use on questions 7, 13 & 15):
B18: ○
B21: ○
B24: ○
B27: ○

Sheet Point Grid
A5: 2019 Exam 8
B6: Total Point Value | C6: Sub-Part of Question | L6: Your Score | M6: Sub-Part of Question
A7: Question | C7: (a) | D7: (b) | E7: (c) | F7: (d) | G7: (e) | H7: (f) | I7: (g) | J7: Status | L7: Question | M7: (a) | N7: (b) | O7: (c) | P7: (d) | Q7: (e) | R7: (f) | S7: (g)
A8: 1 | B8: =SUM(C8:I8) -> 2.25 | C8: 1.5 | D8: 0.75 | J8: =INDIRECT("'"&A8&"'!B1") -> Finished | L8: =A8 -> 1 | M8: =_xlfn.IFNA(IF(ISBLANK(INDEX(INDIRECT("'"&$L8&"'!$A:$A"),MATCH(M$7,INDIRECT("'"&$L8&"'!$A:$A"),0)+2)),"",INDEX(INDIRECT("'"&$L8&"'!$A:$A"),MATCH(M$7,INDIRECT("'"&$L8&"'!$A:$A"),0)+2)),"") -> 1.5 | N8: 0.75
A9: 2 | B9: =SUM(C9:I9) -> 2.75 | C9: 1 | D9: 0.75 | E9: 1 | J9: =INDIRECT("'"&A9&"'!B1") -> Finished | L9: =A9 -> 2 | M9: 1 | N9: 0.75 | O9: 1
A10: 3 | B10: 1.75 | C10: 1.25 | D10: 0.5 | J10: Finished | L10: 3 | M10: 1.25 | N10: 0.5
A11: 4 | B11: 3 | C11: 3 | J11: Finished | L11: 4 | M11: 3
A12: 5 | B12: 2.75 | C12: 0.5 | D12: 0.5 | E12: 1.5 | F12: 0.25 | J12: Finished | L12: 5 | M12: 0.5 | N12: 0.5 | O12: 1.5 | P12: 0.25
A13: 6 | B13: 2 | C13: 0.75 | D13: 0.75 | E13: 0.5 | J13: Finished | L13: 6 | M13: 0.75 | N13: 0.75 | O13: 0.5
A14: 7 | B14: 7.5 | C14: 2.25 | D14: 1.5 | E14: 0.25 | F14: 0.5 | G14: 1.5 | H14: 1 | I14: 0.5 | J14: Finished | L14: 7 | M14: 2.25 | N14: 1.5 | O14: 0.25 | P14: 0.5 | Q14: 1.5 | R14: 1 | S14: 0.5
A15: 8 | B15: 1.5 | C15: 1.5 | J15: Finished | L15: 8 | M15: 1.5
A16: 9 | B16: 1 | C16: 1 | J16: Finished | L16: 9 | M16: 1
A17: 10 | B17: 1.5 | C17: 0.5 | D17: 0.5 | E17: 0.5 | J17: Finished | L17: 10 | M17: 0.5 | N17: 0.5 | O17: 0.5
A18: 11 | B18: 3.75 | C18: 0.5 | D18: 0.5 | E18: 2.75 | J18: Finished | L18: 11 | M18: =_xlfn.IFNA(IF(ISBLANK(INDEX(INDIRECT("'"&$L18&"'!$A:$A"),MATCH(M$7,INDIRECT("'"&$L18&"'!$A:$A"),0)+2)),"",INDEX(INDIRECT("'"&$L18&"'!$A:$A"),MATCH(M$7,INDIRECT("'"&$L18&"'!$A:$A"),0)+2)),"") -> 0.5 | N18: 0.5 | O18: 2.75
A19: 12 | B19: 2 | C19: 0.5 | D19: 1 | E19: 0.5 | J19: Finished | L19: 12 | M19: 0.5 | N19: 1 | O19: 0.5
A20: 13 | B20: 2 | C20: 1.5 | D20: 0.5 | J20: Finished | L20: 13 | M20: 1.5 | N20: 0.5
A21: 14 | B21: 2 | C21: 1 | D21: 1 | J21: Finished | L21: 14 | M21: 1 | N21: 1
A22: 15 | B22: 3.5 | C22: 2 | D22: 1 | E22: 0.5 | J22: Finished | L22: 15 | M22: 2 | N22: 1 | O22: 0.5
A23: 16 | B23: 3 | C23: 1.5 | D23: 1.5 | J23: Finished | L23: 16 | M23: 1.5 | N23: 1.5
A24: 17 | B24: 3 | C24: 3 | J24: Finished | L24: 17 | M24: 3
A25: 18 | B25: 5.5 | C25: 0.5 | D25: 1 | E25: 0.5 | F25: 2 | G25: 1 | H25: 0.5 | J25: Finished | L25: 18 | M25: 0.5 | N25: 1 | O25: 0.5 | P25: 2 | Q25: 1 | R25: 0.5
A26: 19 | B26: 1.75 | C26: 0.5 | D26: 0.75 | E26: 0.5 | J26: Finished | L26: 19 | M26: 0.5 | N26: 0.75 | O26: 0.5
A28: Total | B28: =SUM(B8:B26) -> 52.5 | L28: TOTAL | M28: =IF(SUM(IF(M8:S26="",0,1))=0,"",SUM(M8:S26)) -> 52.5 | O28: Percentage: | P28: =IF(M28="","",M28/B28) -> 1
L30: Passing Score: | M30: 37

Sheet Navigator
A6: Navigator – Select a question to go to it
A8: Question # | H8: Status
A9: Q1 -- Couret & Venter -- Multi-Dimensional Credibility -- 2.25 points | H9: ='Point Grid'!J8 -> Finished
A10: Q2 -- Goldburd (GLM) -- Model Validation -- 2.75 points | H10: ='Point Grid'!J9 -> Finished
A11: Q3 -- Bailey & Simon -- Experience Modification -- 1.75 points | H11: ='Point Grid'!J10 -> Finished
A12: Q4 -- Robertson -- Weighted k-means -- 3.00 points | H12: ='Point Grid'!J11 -> Finished
A13: Q5 -- Goldburd (GLM) -- Logistic Models -- 2.75 points | H13: ='Point Grid'!J12 -> Finished
A14: Q6 -- Goldburd (GLM) -- Interaction Terms --2.00 points | H14: ='Point Grid'!J13 -> Finished
A15: Q7 -- Bahnemann -- Expected Ground Up Loss (IQ) -- 7.50 points | H15: ='Point Grid'!J14 -> Finished
A16: Q8 -- Bahnemann -- Excess Layer Premium -- 1.50 points | H16: ='Point Grid'!J15 -> Finished
A17: Q9 -- Mahler -- When to Use Experience Rating -- 1.00 point | H17: ='Point Grid'!J16 -> Finished
A18: Q10 -- Fisher -- Quintiles & Efficiency Tests -- 1.50 points | H18: ='Point Grid'!J17 -> Finished
A19: Q11 -- Fisher -- Experience Modification & Efficiency Test -- 3.75 points | H19: ='Point Grid'!J18 -> Finished
A20: Q12 -- Fisher -- Table M -- 2.00 points | H20: ='Point Grid'!J19 -> Finished
A21: Q13 -- Bahnemann -- Aggregate Loss in Layer -- 2.00 points | H21: ='Point Grid'!J20 -> Finished
A22: Q14 -- Fisher -- Retrospective Rating -- 2.00 points | H22: ='Point Grid'!J21 -> Finished
A23: Q15 -- Bahnemann -- Excess Severity -- 3.50 points | H23: ='Point Grid'!J22 -> Finished
A24: Q16 -- Fisher -- Limited Table M -- 3.00 points | H24: ='Point Grid'!J23 -> Finished
A25: Q17 -- Clark -- Technical Ratio -- 3.00 points | H25: ='Point Grid'!J24 -> Finished
A26: Q18 -- Clark -- Property Per Risk Treaty (IQ) -- 5.50 points | H26: ='Point Grid'!J25 -> Finished
A27: Q19 -- Grossi -- Quota Share Reinsurance -- 1.75 points | H27: ='Point Grid'!J26 -> Finished

Sheet 1
A1: 1 | B1: Finished | H1: Navigator | J1: Solution
I2: (a) | J2: Multi-Dimensional Credibility Formula
A3: Points | B3: An insurer uses five geographical Storm Zones (A, B, C, D, and E) in their rating plan.
A4: =INDEX('Point Grid'!B:B,MATCH('1'!A1,'Point Grid'!A:A,0)) -> 2.25 | B4: The insurer refines their rating plan using the following approach:
B5: • Divide each Storm Zone into numerous geographical sectors. | J5: Here, a subscript S refers to the storm sector which is analogous to the class within a
B6: • For each geographical sector and storm type, calculate the observed storm frequency | J6: hazard group. A subscript Z refers to the storm zone which plays the role of a hazard group.
B7: as number of storms per year.
B8: ○ There are three storm types defined as Moderate, Strong, and Severe storms. | J8: Let V represent severe storms, W strong storms, and X moderate storms. These take on the
J9: role of the injury types.
B10: The insurer performs two credibility procedures to produce estimates of the respective
B11: storm frequencies in each sector. The first is a multi-dimensional credibility procedure | J11: Applying the formula:
B12: and the second is a single-dimensional credibility procedure (utilizing only a single | J12: ="= "&D22&" + "&C22&"("&F22&" - "&D22&") + "&C21&"("&F21&" - "&D21&") + "&C20& "("&F20&" - "&D20&")" -> = 0.73 + 0.2(0.69 - 0.73) + 0.12(2.4 - 1.4) + 0.05(7.1 - 5.3)
B13: storm type). | J13: =D22+C22*(F22-D22)+C21*(F21-D21)+C20*(F20-D20) -> 0.932
A15: (a) | B15: The multi-dimensional credibility results for a particular sector in Storm Zone C for | J15: Single Dimensional Credibility Formula
A16: =INDEX('Point Grid'!$C$8:$I$26,MATCH($A$1,'Point Grid'!$A$8:$A$26,0),MATCH(A15,'Point Grid'!$C$7:$I$7,0)) -> 1.5 | B16: Severe storms are given in the table below. The single-dimensional credibility factor | M16: Z = 0.30 (from text)
A17: 1.5 | B17: is 0.30.
B18: Storm Type | C18: Coefficient | D18: Storm Zone Mean Frequency | F18: Sector Mean Frequency | J18: Applying the formula:
B19: Intercept | C19: not provided | J19: ="= 0.3 * "&F22&" + (1 - 0.3) * "&D22 -> = 0.3 * 0.69 + (1 - 0.3) * 0.73
B20: Moderate | C20: 0.05 | D20: 5.3 | F20: 7.1 | J20: =0.3*F22+(1-0.3)*D22 -> 0.718
B21: Strong | C21: 0.12 | D21: 1.4 | F21: 2.4
B22: Severe | C22: 0.2 | D22: 0.73 | F22: 0.69 | I22: (b) | J22: Multi-dimensional credibility is based on the idea that the claim frequency for different
J23: storm types are related. It assigns weights based on the relative mean frequencies of the
B24: Calculate the mean frequency estimate of Severe storms for each of the two | J24: sector to the zone. There are more strong and moderate storms than severe storms
B25: credibility procedures. | J25: within the sectors than the zone so those storm types have higher frequencies which increases
J26: the multi-dimensional credibility. Whereas the single dimensional credibility only relies on the
A27: (b) | B27: Fully explain why the single-dimensional credibility estimate in part (a) above is | J27: difference between the zone and sector for severe storms.
A28: =INDEX('Point Grid'!$C$8:$I$26,MATCH($A$1,'Point Grid'!$A$8:$A$26,0),MATCH(A27,'Point Grid'!$C$7:$I$7,0)) -> 0.75 | B28: lower than the multi-dimensional credibility estimate.
A29: 0.75

Sheet 2
A1: 2 | B1: Finished | K1: Navigator | N1: Solution
M2: (a) | N2: Sort the data by modeled loss cost in ascending order.
A3: Points | B3: An actuary has built two generalized linear models to predict loss costs. Management has requested a series of model validation | N3: Note both models have the same order so the plots
A4: =INDEX('Point Grid'!B:B,MATCH('2'!A1,'Point Grid'!A:A,0)) -> 2.75 | B4: plots to demonstrate the appropriateness of each of the new models. Output for each model, simple quantile plots, and a | N4: are identical.
B5: double lift plot are shown below: | N5: Obs | O5: Actual Loss Ratio
D6: Observation | E6: Actual Loss Cost | F6: Model A Loss Cost | G6: Model B Loss Cost | H6: Earned Premium | N6: 3 | O6: =E9/H9 -> 0
D7: 1 | E7: 1500 | F7: 825 | G7: 900 | H7: 1800 | N7: 2 | O7: =E8/H8 -> 0.4655172414
D8: 2 | E8: 675 | F8: 765 | G8: 800 | H8: 1450 | N8: 1 | O8: =E7/H7 -> 0.8333333333
D9: 3 | E9: 0 | F9: 615 | G9: 350 | H9: 2375 | N9: 4 | O9: =E10/H10 -> 0.8571428571
D10: 4 | E10: 2250 | F10: 900 | G10: 3000 | H10: 2625 | N10: 5 | O10: =E11/H11 -> 1.025641026
D11: 5 | E11: 5000 | F11: 1050 | G11: 3700 | H11: 4875
N12: Since only 5 observations, each observation is 1 quintile
M25: (b) | N25: • Loss Ratio plot only assesses how well the GLM distinguishes
N26: between risks, not if the predictions are accurate.
N27: • Double lift charts can be difficult to explain to
N28: non-technical people (management)
N29: • Quantile plots are on two separate charts which makes
N30: it hard to compare them.
M32: (c) | N32: • Based on the quantile plots, model B is better at predicting
N33: the actual loss cost than model A as the actual and model
N34: lines are closer together.
N35: • The double lift chart suggests model B is better as it
N36: tracks the actual loss cost more closely.
B37: Given the following: | N37: • The loss ratio plot has an upward trend for model B
B38: • The actuary has already provided management with the simple quintile plots and the double lift chart shown above. | N38: this suggests the model differentiates well between
B39: • The company has implemented several segmented rate changes over the last three years. | N39: risks.
N40: • Recommend implementing model B
A41: (a) | B41: For each model, provide a loss ratio plot that management can use to assess lift. Identify the basis of sorting the data.
A42: =INDEX('Point Grid'!$C$8:$I$26,MATCH($A$1,'Point Grid'!$A$8:$A$26,0),MATCH(A41,'Point Grid'!$C$7:$I$7,0)) -> 1
A43: 1
A45: (b) | B45: Briefly describe one drawback of each type of model validation plot that the actuary has provided to management,
A46: =INDEX('Point Grid'!$C$8:$I$26,MATCH($A$1,'Point Grid'!$A$8:$A$26,0),MATCH(A45,'Point Grid'!$C$7:$I$7,0)) -> 0.75 | B46: including the plot produced in part (a) above.
A47: 0.75
A49: (c) | B49: Using all three types of model validation plots provided to management, recommend which model should be
A50: =INDEX('Point Grid'!$C$8:$I$26,MATCH($A$1,'Point Grid'!$A$8:$A$26,0),MATCH(A49,'Point Grid'!$C$7:$I$7,0)) -> 1 | B50: implemented. Do not perform any calculations.
A51: 1

Sheet 3
A1: 3 | B1: Finished | E1: Formula Sheet | H1: Navigator | J1: Solution
I2: (a) | J2: Using | M2: yields 0.101 = 10p / (1 - p)
A3: Points | B3: An insurance company has a private passenger auto book of business with an experience
A4: =INDEX('Point Grid'!B:B,MATCH('3'!A1,'Point Grid'!A:A,0)) -> 1.75 | B4: modification factor in its rating plan. | J4: Solving this for p gives p = 0.01.
B5: Given the following:
B6: • Annual claims for an individual driver follow a negative binomial distribution with | J6: Next, we need the probability of no claims, Pr(N = 0)
B7: r = 10.
B8: • The expected claim frequency for the entire book of business is 0.101.
B9: • The credibility for the group of risks that have had at least one accident in the last year
B10: is 0.02. | J10: Here x = 0, so
A12: (a) | B12: Calculate the experience modification factor for a policy that has had at least one
A13: =INDEX('Point Grid'!$C$8:$I$26,MATCH($A$1,'Point Grid'!$A$8:$A$26,0),MATCH(A12,'Point Grid'!$C$7:$I$7,0)) -> 1.25 | B13: accident in the last year.
A14: 1.25 | J14: Then
A16: (b) | B16: Describe why a class with a higher volume of claims and more exposures may have less | J16: Then
A17: =INDEX('Point Grid'!$C$8:$I$26,MATCH($A$1,'Point Grid'!$A$8:$A$26,0),MATCH(A16,'Point Grid'!$C$7:$I$7,0)) -> 0.5 | B17: credibility than a class with fewer claims and exposures. | J17: So Mod = | K17: ="0.02 * 10.458 + (1 - 0.02) * 1" -> 0.02 * 10.458 + (1 - 0.02) * 1
A18: 0.5 | J18: = | K18: =0.02*10.458+(1-0.02)*1 -> 1.18916
I20: (b) | J20: Experience rating credibility depends not only on the volume of data but also the
J21: variance within a class. Therefore, a class may receive more credibility than a class with
J22: more volume if it has more variance within the class.

Sheet 4
A1: 4 | B1: Finished | G1: Navigator | I1: Solution
I2: Although class 5 looks to be an outlier at both limits, it also has the lowest earned premium
A3: Points | B3: An actuary wants to cluster six workers compensation classes based on excess ratios at | I3: so more volatility is expected. Recommend the L2 measure as it isn't a sufficient outlier.
A4: =INDEX('Point Grid'!B:B,MATCH('4'!A1,'Point Grid'!A:A,0)) -> 3 | B4: two limits: 750,000 and 1,500,000. The actuary decides to use a weighted k-means | J4: Centroid
B5: algorithm with three clusters. Given the following: | I5: Cluster | J5: 750000 | K5: 1500000
B6: Class | C6: On-Leveled Earned Premium | D6: Normalized Excess Ratio at 750,000 Limit | E6: Normalized Excess Ratio at 1,500,000 Limit | F6: Initial Cluster | I6: A | J6: =(C7*D7+C10*D10+C11*D11)/(C7+C10+C11) -> 0.2655555556 | K6: =(C7*E7+C10*E10+C11*E11)/(C7+C10+C11) -> 0.1132222222
B7: 1 | C7: 7000000 | D7: 0.25 | E7: 0.095 | F7: A | I7: B | J7: =(C8*D8+C12*D12)/(C8+C12) -> 0.2206060606 | K7: =(C8*E8+C12*E12)/(C8+C12) -> 0.08927272727
B8: 2 | C8: 8000000 | D8: 0.2 | E8: 0.08 | F8: B | I8: C | J8: =D9 -> 0.17 | K8: =E9 -> 0.062
B9: 3 | C9: 7500000 | D9: 0.17 | E9: 0.062 | F9: C
B10: 4 | C10: 6000000 | D10: 0.13 | E10: 0.048 | F10: A | I10: Class | J10: Dist to A | K10: Dist to B | L10: Dist to C | M10: New Cluster
B11: 5 | C11: 5000000 | D11: 0.45 | E11: 0.217 | F11: A | I11: 1 | J11: =SQRT((D7-$J$6)^2+(E7-$K$6)^2) -> 0.02395881239 | K11: =SQRT((D7-$J$7)^2+(E7-$K$7)^2) -> 0.0299467081 | L11: =SQRT((D7-$J$8)^2+(E7-$K$8)^2) -> 0.08653900855 | M11: A
B12: 6 | C12: 8500000 | D12: 0.24 | E12: 0.098 | F12: B | I12: 2 | J12: =SQRT((D8-$J$6)^2+(E8-$K$6)^2) -> 0.07349317597 | K12: =SQRT((D8-$J$7)^2+(E8-$K$7)^2) -> 0.02259630954 | L12: =SQRT((D8-$J$8)^2+(E8-$K$8)^2) -> 0.03498571137 | M12: B
I13: 3 | J13: 0.108418542 | K13: 0.05748717268 | L13: 0 | M13: C
B14: • At the start of the algorithm, the actuary randomly assigned each class to a cluster. | I14: 4 | J14: 0.1504302061 | K14: 0.09956352864 | L14: 0.0423792402 | M14: C
B15: • The actuary has observed that the 750,000 limit is selected by the insured 75% of the | I15: 5 | J15: 0.2116354891 | K15: 0.2625563475 | L15: 0.3200390601 | M15: A
B16: time, consistent across all six classes. | I16: 6 | J16: 0.02974562941 | K16: 0.02126711486 | L16: 0.07871467462 | M16: B
A18: (a) | B18: Briefly justify which measure to use to calculate the distance between vectors and using
A19: =INDEX('Point Grid'!$C$8:$I$26,MATCH($A$1,'Point Grid'!$A$8:$A$26,0),MATCH(A18,'Point Grid'!$C$7:$I$7,0)) -> 3 | B19: that measure, determine the cluster for each class after the first iteration of the
A20: 3 | B20: weighted k-means algorithm.

Sheet 5
A1: 5 | B1: Finished | G1: Navigator | I1: Solution
H2: (a) | I2: The logit link function should be used, | N2: where
A3: Points | B3: The following confusion matrix shows the results from a claim fraud model with a
A4: =INDEX('Point Grid'!B:B,MATCH('5'!A1,'Point Grid'!A:A,0)) -> 2.75 | B4: discrimination threshold of 25%: | I4: This is appropriate because the inverse of the logit function is the logistic function,
C5: Predicted | K5: which takes any real number and maps it to the interval [0, 1].
B6: Actual | C6: Yes | D6: No | K6: By choosing a discriminant threshold we can turn this into a
B7: Yes | C7: 72 | D7: 162 | K7: binary outcome.
B8: No | C8: 63 | D8: 1203
H9: (b) | I9: Sensitivity = TP / (TP + FN) | M9: TP = True Positive
A10: (a) | B10: Identify a link function that can be used for a generalized linear model that has a binary | J10: ="= "&C7 &" / (" &C7&" + "&D7&")" -> = 72 / (72 + 162) | M10: TN = True Negative
A11: =INDEX('Point Grid'!$C$8:$I$26,MATCH($A$1,'Point Grid'!$A$8:$A$26,0),MATCH(A10,'Point Grid'!$C$7:$I$7,0)) -> 0.5 | B11: target variable and briefly explain why this link function is appropriate. | J11: =C7/(C7+D7) -> 0.3076923077 | M11: FP = False Positive
A12: 0.5 | M12: FN = False Negative
I13: Specificity = TN / (TN + FP)
A14: (b) | B14: Calculate the sensitivity and specificity from the above data. | J14: ="= "&D8 &" / (" &D8&" + "&C8&")" -> = 1203 / (1203 + 63)
A15: =INDEX('Point Grid'!$C$8:$I$26,MATCH($A$1,'Point Grid'!$A$8:$A$26,0),MATCH(A14,'Point Grid'!$C$7:$I$7,0)) -> 0.5 | J15: =D8/(D8+C8) -> 0.9502369668
A16: 0.5 | R16: Current Model | T16: No Pred Power | V16: Perfect
H17: (c) | I17: X-axis: False positive rate = 1 - Specificity. Y-axis: Sensitivity (True positive rate) | Q17: Threshold | R17: x | S17: y | T17: x | U17: y | V17: x | W17: y
A18: (c) | B18: Plot the receiver operating characteristic (ROC) curve with the discrimination threshold | Q18: 0 | R18: 0 | S18: 0 | T18: 0 | U18: 0 | V18: 0 | W18: 0
A19: =INDEX('Point Grid'!$C$8:$I$26,MATCH($A$1,'Point Grid'!$A$8:$A$26,0),MATCH(A18,'Point Grid'!$C$7:$I$7,0)) -> 1.5 | B19: of 25%. Label each axis, the coordinates, and the discrimination thresholds of 100%, 25% | Q19: 0.25 | R19: =1-J15 -> 0.04976303318 | S19: =J11 -> 0.3076923077 | T19: 0.25 | U19: 0.25 | V19: 0 | W19: 1
A20: 1.5 | B20: and 0% on the curve. | Q20: 1 | R20: 1 | S20: 1 | T20: 1 | U20: 1 | V20: 1 | W20: 1
B22: In addition, plot the ROC curve for each of the following two models:
B23: i. A model with no predictive power
B24: ii. A hypothetical "perfect" model
A26: (d) | B26: Briefly describe how the severity of claims will impact the selection of the model threshold.
A27: =INDEX('Point Grid'!$C$8:$I$26,MATCH($A$1,'Point Grid'!$A$8:$A$26,0),MATCH(A26,'Point Grid'!$C$7:$I$7,0)) -> 0.25
A28: 0.25
H33: (d) | I33: The more severe the claims, the lower the discrimination threshold should be because
I34: the benefit of identifying fraudulent claims will outweigh the cost of investigating the
I35: false positives (predicted fraud when no fraud actually occurred).

Sheet 6
A1: 6 | B1: Finished | G1: Navigator | I1: Solution
H2: (a) | I2: Sprinklered property, AOI = 200,000, Occupancy Class 2
A3: Points | B3: An actuary creates a generalized linear model (GLM) to estimate commercial property claim | I3: ="= exp("&E14&" + "& E15&" + "&E18&" + "&E19&" * ln(200,000) + "&E20&" * ln(200,000))" -> = exp(-8.4607 + 0.2714 + 0.7228 + 0.4311 * ln(200,000) + -0.096 * ln(200,000))
A4: =INDEX('Point Grid'!B:B,MATCH('6'!A1,'Point Grid'!A:A,0)) -> 2 | B4: frequency by occupancy class and amount of insurance (AOI) for sprinklered and | I4: =EXP(E14+E15+E18+E19*LN(200000)+E20*LN(200000)) -> 0.03417554133
B5: non-sprinklered risks. Given the following:
B6: • Occupancy class is a categorical variable with four levels: Class 1, 2, 3 and 4. | I6: Non-Sprinklered property, AOI = 200,000, Occupancy Class 2
B7: • Sprinklered status is a categorical variable with two levels: sprinklered and | I7: ="= exp("&E14&" + "& E15&" + "&E19&" * ln(200,000))" -> = exp(-8.4607 + 0.2714 + 0.4311 * ln(200,000))
B8: non-sprinklered. | I8: =EXP(E14+E15+E19*LN(200000)) -> 0.05354343515
B9: • The natural log of AOI, ln(AOI), is a continuous variable.
B10: • The log link function is selected. | I10: ="Ratio = "&TEXT(I4,"0.000000") & " / "&TEXT(I8,"0.000000") -> Ratio = 0.034176 / 0.053543
B11: • An interaction variable is included as ln(AOI) for sprinklered and zero otherwise. | I11: =I4/I8 -> 0.6382769659
B12: • The model results are as follows:
C13: Parameter | E13: Coefficient | H13: (b) | I13: When we rebase the model, the predicted value does not change, just the coefficients.
C14: Intercept | E14: -8.4607 | I14: By rebasing to AOI = 200,000 we have a ln (AOI / 200,000) term in the model.
C15: Occupancy Class 2 | E15: 0.2714 | I15: This is 0 when the AOI equals 200,000
C16: Occupancy Class 3 | E16: 0.362 | I16: We can equate predictions to determine the new model coefficients.
C17: Occupancy Class 4 | E17: 0.0395 | I17: It's easiest to use the Non-Sprinklered property found in part (a) above and to ignore
C18: Sprinklered | E18: 0.7228 | I18: the exponential as it is on both sides.
C19: ln(AOI) | E19: 0.4311 | I19: We have
C20: Sprinklered: Yes, ln(AOI) | E20: -0.096 | I20: =E14&" + "&E15&" + "&E19&" * ln(200,000) = b + "&E15 -> -8.4607 + 0.2714 + 0.4311 * ln(200,000) = b + 0.2714
I21: (initial model terms) = (new coefficient + unchanged occupancy class + no contribution from AOI)
A22: (a) | B22: Calculate the ratio of the estimated model frequency of a sprinklered property to that of a | I22: b is the rebased intercept term
A23: =INDEX('Point Grid'!$C$8:$I$26,MATCH($A$1,'Point Grid'!$A$8:$A$26,0),MATCH(A22,'Point Grid'!$C$7:$I$7,0)) -> 0.75 | B23: non-sprinklered property for AOI = 200,000 and Occupancy Class 2. | I23: Solving for b yields
A24: 0.75 | I24: =E14+E19*LN(200000) -> -3.198662083
A26: (b) | B26: Calculate the intercept term if AOI is centered at the base level of 200,000. | H26: (c) | I26: The transformed intercept is indicated at the base case
A27: =INDEX('Point Grid'!$C$8:$I$26,MATCH($A$1,'Point Grid'!$A$8:$A$26,0),MATCH(A26,'Point Grid'!$C$7:$I$7,0)) -> 0.75 | I27: • The intercept now represents all variables at their base case, making the model easier
A28: 0.75 | I28: to interpret as now it's the average frequency at base levels.
A30: (c) | B30: Briefly describe two advantages of centering variables of a GLM at their base levels. | I30: Sign of the Interacted Variable
A31: =INDEX('Point Grid'!$C$8:$I$26,MATCH($A$1,'Point Grid'!$A$8:$A$26,0),MATCH(A30,'Point Grid'!$C$7:$I$7,0)) -> 0.5 | I31: • When a variable isn't centered on its base level the coefficient of an interaction term
A32: 0.5 | I32: may have the opposite sign to what is intuitively expected. By rebasing, we make the
I33: model easier to interpret relative to our intuition.

Sheet 7
A1: 7 | B1: Finished | F1: Formula Sheet | K1: Navigator | N1: Solution
M2: (a) | N2: Loss Elimination Ratio (LER) = E[X; 100,000] / E[X]
A3: Points | B3: An actuary is pricing a workers compensation policy. Given the following: | N3: Using the formulas on the Formula Sheet we calculate
A4: =INDEX('Point Grid'!B:B,MATCH('7'!A1,'Point Grid'!A:A,0)) -> 7.5 | C4: Policy Effective Date | G4: 2020-01-01
C5: Policy Term | G5: One year | N5: LER = | P5: = | Q5: =1-(22800/122800)^0.3 -> 0.3965782722
C6: Annual Loss Trend | G6: 0.045
C7: Cap for individual claims | G7: 100000 | N7: This yields the expected ultimate limited loss before modification
C8: Credibility factor | G8: 0.4 | N8: as | O8: =G9&" * "&TEXT(Q5,"0.0000")& " = "&TEXT(G9*Q5,"0,000.00") -> 1064000 * 0.3966 = 421,959.28
C9: Expected ultimate loss before modification | G9: 1064000
N10: Now de-trend and de-develop back to the years in the
B11: As of June 30, 2019, ground up reported losses are: | N11: experience period.
C12: Policy Year | D12: Total Reported Loss | F12: Individual Claims over $100,000 | N12: The effective date is 1/1/20, since we lag the experience period
C13: 2016 | D13: 392457 | F13: 128305 | N13: by 1 year, the years in the period are 2018, 2017, and 2016
C14: 2017 | D14: 1013863 | F14: 525626 | G14: 152860
C15: 2018 | D15: 459798 | F15: 275865 | O15: Expected | R15: Expected
C16: 2019 | D16: 181325 | F16: None | N16: PY | O16: Limited | P16: Detrend | Q16: De-Develop | R16: Reported
N17: 2018 | O17: =$G$9*$Q$5 -> 421959.2816 | P17: =(1+$G$6)^-2 -> 0.9157299512 | Q17: =1/D22 -> 0.7776049767 | R17: =PRODUCT(O17:Q17) -> 300467.148
B18: The following limited loss development factors (LDFs) apply to this policy: | N18: 2017 | O18: =$G$9*$Q$5 -> 421959.2816 | P18: =(1+$G$6)^-3 -> 0.8762966041 | Q18: =1/D21 -> 0.9140767824 | R18: =PRODUCT(O18:Q18) -> 337990.389
C19: Maturity to Ultimate | D19: Limited LDF | N19: 2016 | O19: 421959.2816 | P19: =(1+$G$6)^-4 -> 0.8385613436 | Q19: =1/D20 -> 0.9505703422 | R19: 336348.6142
C20: 42 months | D20: 1.052 | R20: =SUM(R17:R19) -> 974806.1512
C21: 30 months | D21: 1.094
C22: 18 months | D22: 1.286 | N22: Note: The average future accident date is 7/1/20, so the trend length
N23: is 2 years for 2018.
B24: Based on an internal study, the actuary believes that claim severity follows a shifted Pareto distribution
B25: with α = 1.3 and β = 22,800. | M25: (b) | N25: Limited Reported Losses
P26: Excess of cap | Q26: Total Capped
B27: The following expenses apply to this policy: | N27: PY | O27: Total
C28: Loss Adjustment Expense (LAE) | E28: 7.5% of loss | N28: 2018 | O28: =D15 -> 459798 | P28: =F15-100000 -> 175865 | Q28: =O28-P28 -> 283933
C29: Taxes and Fees | E29: 3.5% of gross premium | N29: 2017 | O29: =D14 -> 1013863 | P29: =(F14-100000)+(G14-100000) -> 478486 | Q29: =O29-P29 -> 535377
C30: Acquisition | E30: 17% of gross premium | N30: 2016 | O30: =D13 -> 392457 | P30: =F13-100000 -> 28305 | Q30: 364152
C31: Profit and Contingencies | E31: 0% of gross premium | Q31: =SUM(Q28:Q30) -> 1183462 | R31: Total
B33: The insurer's management is concerned about capacity on risks of this type. To address these concerns, | N33: Experience Mod = (Actual / Expected) * Z + (1 - Z)*1
B34: they are requiring facultative reinsurance to support this account. Under the treaty, the reinsurer would | N34: ="("&Q31&" / "&R20&") * "&G8&" + (1 - "&G8&") * 1" -> (1183462 / 974806.151167234) * 0.4 + (1 - 0.4) * 1
B35: assume all aggregate losses between $2,000,000 and $4,000,000. The primary insurer will retain all LAE. | N35: =Q31/R20*G8+(1-G8)*1 -> 1.085619422
B37: The primary insurer's actuary believes the following Table M and the associated expected loss groupings | N37: Total modified ground up unlimited loss =
B38: (ELGs) are appropriate for risks of this type: | N38: Experience Mod * Expected ultimate unlimited loss
N39: =N35*G9 -> 1155099.065
B40: ELG | C40: Loss Range | H40: ELG
B41: 31 | C41: $730,000 – 820,000 | E41: Entry Ratio | F41: 31 | G41: 30 | H41: 29 | I41: 28 | J41: 27 | K41: 26 | M41: (c) | N41: • This approach gives equal weight to all years of experience
B42: 30 | C42: $820,001 – 930,000 | E42: 1.5 | F42: 0.1876 | G42: 0.1764 | H42: 0.1649 | I42: 0.1529 | J42: 0.1442 | K42: 0.1343 | N42: while the method used in parts (a) and (b) gives more weight
B43: 29 | C43: $930,001 – 1,090,000 | E43: 1.75 | F43: 0.149 | G43: 0.1376 | H43: 0.1257 | I43: 0.1131 | J43: 0.1048 | K43: 0.0963 | N43: to the older years.
B44: 28 | C44: $1,090,001 – 1,280,000 | E44: 2 | F44: 0.1195 | G44: 0.1083 | H44: 0.0964 | I44: 0.0838 | J44: 0.0762 | K44: 0.0692
B45: 27 | C45: $1,280,001 – 1,515,000 | E45: 2.25 | F45: 0.0968 | G45: 0.0859 | H45: 0.0745 | I45: 0.0623 | J45: 0.0555 | K45: 0.0497 | M45: (d)
B46: 26 | C46: $1,515,001 – 1,844,000 | E46: 2.5 | F46: 0.0791 | G46: 0.0687 | H46: 0.0579 | I46: 0.0465 | J46: 0.0404 | K46: 0.0357
E47: 2.75 | F47: 0.0652 | G47: 0.0554 | H47: 0.0453 | I47: 0.0347 | J47: 0.0295 | K47: 0.0257 | N47: ="= [ "&TEXT(G9,"0,000") &" * "&TEXT(N35,"0.000")&" * (1 + 7.5%) ] / ( 1 - 3.5% - 17% )" -> = [ 1,064,000 * 1.086 * (1 + 7.5%) ] / ( 1 - 3.5% - 17% )
E48: 3 | F48: 0.0541 | G48: 0.045 | H48: 0.0356 | I48: 0.026 | J48: 0.0215 | K48: 0.0185 | N48: =(G9*N35*(1+7.5%))/(1-3.5%-17%) -> 1561926.409
E49: 3.25 | F49: 0.0452 | G49: 0.0367 | H49: 0.0282 | I49: 0.0196 | J49: 0.0157 | K49: 0.0133
E50: 3.5 | F50: 0.038 | G50: 0.0302 | H50: 0.0224 | I50: 0.0148 | J50: 0.0115 | K50: 0.0096 | M50: (e) | N50: From part (b) the experience modified expected unlimited
E51: 3.75 | F51: 0.0321 | G51: 0.025 | H51: 0.0179 | I51: 0.0111 | J51: 0.0084 | K51: 0.0069 | N51: ="loss is "&TEXT(N39,"#,###.00") -> loss is 1,155,099.07
E52: 4 | F52: 0.0273 | G52: 0.0207 | H52: 0.0144 | I52: 0.0084 | J52: 0.0062 | K52: 0.005 | N52: This corresponds to Expected Loss Group 28
A54: (a) | B54: Calculate the expected ground up reported loss limited to $100,000 per claim for this insured for the three | N54: Now compute the entry ratios for the reinsurer's layer.
A55: =INDEX('Point Grid'!$C$8:$I$26,MATCH($A$1,'Point Grid'!$A$8:$A$26,0),MATCH(A54,'Point Grid'!$C$7:$I$7,0)) -> 2.25 | B55: years of experience combined. | N55: Since there's only a per-occurrence cap, this is a Table M
A56: 2.25 | N56: entry ratio, i.e. Unlimited Actual Loss / Expected Unlimited Loss
N57: At the lower bound the entry ratio is 2 million / part (b)
A58: (b) | B58: Calculate the total modified ground up unlimited expected loss for this policy. | N58: =ROUND(2*10^6/N39,2) -> 1.73 | O58: which rounds to 1.75
A59: =INDEX('Point Grid'!$C$8:$I$26,MATCH($A$1,'Point Grid'!$A$8:$A$26,0),MATCH(A58,'Point Grid'!$C$7:$I$7,0)) -> 1.5 | N59: At the upper bound the entry ratio is 4 million / part (b)
A60: 1.5 | N60: =ROUND(4*10^6/N39,2) -> 3.46 | O60: which rounds to 3.50
N61: Looking these values up in the given table yields
A62: (c) | B62: Alternatively, the actuary could have trended and developed reported losses to the cost level of the | N62: φ(1.75) = 0.1131
A63: =INDEX('Point Grid'!$C$8:$I$26,MATCH($A$1,'Point Grid'!$A$8:$A$26,0),MATCH(A62,'Point Grid'!$C$7:$I$7,0)) -> 0.25 | B63: prospective policy period. Briefly explain why this approach would not produce an identical modification | N63: φ(3.50) = 0.0148
A64: 0.25 | B64: factor.
N65: Hence, the loss in reinsurer layer is
A66: (d) | B66: Calculate the guaranteed cost premium for this insured. | N66: (φ(1.75) - φ(3.50))* (part (b))
A67: =INDEX('Point Grid'!$C$8:$I$26,MATCH($A$1,'Point Grid'!$A$8:$A$26,0),MATCH(A66,'Point Grid'!$C$7:$I$7,0)) -> 0.5 | N67: =(I43-I50)*N39 -> 113546.2381
A68: 0.5
M69: (f) | N69: The difference between the premium charged for the layer
A70: (e) | B70: Calculate the loss expected to be ceded to the reinsurer under this treaty. Round to the nearest entry ratio | N70: ="and the loss in the layer is $200,000 - "&TEXT(N67,"$0,000.00") -> and the loss in the layer is $200,000 - $113,546.24
A71: =INDEX('Point Grid'!$C$8:$I$26,MATCH($A$1,'Point Grid'!$A$8:$A$26,0),MATCH(A70,'Point Grid'!$C$7:$I$7,0)) -> 1.5 | B71: (i.e. do not interpolate). | N71: The primary insurer must load this for profit and variable expenses
A72: 1.5 | N72: and add it to the guaranteed cost premium found in part (d).
N73: Hence, the new premium is
A74: (f) | B74: A reinsurer has quoted a premium of $200,000 for this treaty. Calculate the premium the primary insurer must charge in | N74: =TEXT(N48,"0,000.00") &" + "&TEXT(200000-N67,"0,000.00")&" / (1 - 3.5% - 17%)" -> 1,561,926.41 + 86,453.76 / (1 - 3.5% - 17%)
A75: =INDEX('Point Grid'!$C$8:$I$26,MATCH($A$1,'Point Grid'!$A$8:$A$26,0),MATCH(A74,'Point Grid'!$C$7:$I$7,0)) -> 1 | B75: order to maintain the same underwriting profit. | N75: =N48+(200000-N67)/(1-3.5%-17%) -> 1670673.279
A76: 1
M77: (g) | N77: • The choice of a Pareto distribution may not be appropriate
A78: (g) | B78: Explain how the assumptions of the primary insurer's actuary may have resulted in an inequitable premium calculated in | N78: as it heavily influences the tail of the distribution. This could
A79: =INDEX('Point Grid'!$C$8:$I$26,MATCH($A$1,'Point Grid'!$A$8:$A$26,0),MATCH(A78,'Point Grid'!$C$7:$I$7,0)) -> 0.5 | B79: part (f) above. | N79: make the insurance charges either under or overstate premiums,
A80: 0.5 | N80: making them inequitable.
N81: • The calculation in part (f) also doesn't account for the
N82: primary insurer transferring a large part of its uncertain risk
N83: to the reinsurer. The primary insurer could lower its profit
N84: or risk load to compensate and make premiums equitable.

Sheet 8
A1: 8 | B1: Finished | G1: Navigator | I1: Solution
H2: (a) | I2: ILF(500,000) = 156,250 / 58,750 = | L2: =D15/D13 -> 2.659574468
A3: Points | B3: Given the following for a policy: | I3: ILF(1,000,000) = 218,750 / 58,750 = | L3: =D16/D13 -> 3.723404255
A4: =INDEX('Point Grid'!B:B,MATCH('8'!A1,'Point Grid'!A:A,0)) -> 1.5 | B4: • Basic Limit = 100,000
B5: • Expected Basic Limit Indemnity = 65,000 | I5: Expected Losses = Expected Basic Limit Indemnity * (ILF (1m) - ILF (500k))
B6: • Allocated Loss Adjustment Expense (ALAE) = 20% of Indemnity | I6: =65000*(L3-L2) -> 69148.93617
B7: • Unallocated Loss Adjustment Expense = 1.5% of Indemnity and ALAE
B8: • All other expenses are variable and are 15% of the premium | I8: Premium = [Expected Losses *(1 + ALAE%)*(1 + ULAE%) ] / [1 - Var. Exp. - Profit %]
B9: • Risk load = 0% | I9: =(I6*(1+20%)*(1+1.5%))/(1-15%-2.5%) -> 102088.9749
B10: • Profit load = 2.5%
B11: • The following table shows Indemnity-only limited expected severity:
C12: Limit | D12: E[X; L]
C13: 100000 | D13: 58750
C14: 200000 | D14: 100000
C15: 500000 | D15: 156250
C16: 1000000 | D16: 218750
A18: (a) | B18: Calculate the premium for this policy with a 500,000 limit over a 500,000 deductible.
A19: =INDEX('Point Grid'!$C$8:$I$26,MATCH($A$1,'Point Grid'!$A$8:$A$26,0),MATCH(A18,'Point Grid'!$C$7:$I$7,0)) -> 1.5
A20: 1.5

Sheet 9
A1: 9 | B1: Finished | G1: Navigator | I1: Solution
H2: (a) | I2: High VHM means there is significant variance between risks within the class, this
A3: Points | B3: An insurer's risk classification system contains four classes (A, B, C, and D). The insurer is considering | I3: causes the credibility of the experience rating to increase, making experience rating
A4: =INDEX('Point Grid'!B:B,MATCH('9'!A1,'Point Grid'!A:A,0)) -> 1 | B4: using experience rating to rate all four classes. | I4: more useful.
B5: Given the following: | I5: High EVPV means there is a lot of volatility in loss experience that isn't explained
D6: Low Variance of | E6: High Variance of | I6: by differences between risks in the class. This causes the credibility of the experience
D7: Hypothetical Means | E7: Hypothetical Means | I7: rating to decrease, making it less useful.
D8: within Class | E8: within Class | I8: Hence experience rating is most useful for Class B and least useful for Class C.
B9: Low Expected Value of Process Variance | D9: Class A | E9: Class B
B11: High Expected Value of Process Variance | D11: Class C | E11: Class D
A14: (a) | B14: From the insurer's perspective, briefly explain the class for which experience rating is expected to be
A15: =INDEX('Point Grid'!$C$8:$I$26,MATCH($A$1,'Point Grid'!$A$8:$A$26,0),MATCH(A14,'Point Grid'!$C$7:$I$7,0)) -> 1 | B15: the most useful and the class for which experience rating is expected to be the least useful.
A16: 1

Sheet 10
A1: 10 | B1: Finished | G1: Navigator | I1: Solution
H2: (a) | I2: Line of business 1 has an increasing standard loss ratio. This indicates the experience
A3: Points | B3: An actuary has created new models to calculate the experience modification factor for two lines of | I3: rating is identify differences between risks. Since there is no experience plan currently
A4: =INDEX('Point Grid'!B:B,MATCH('10'!A1,'Point Grid'!A:A,0)) -> 1.5 | B4: business. Given the following: | I4: in place, and the standard loss ratio of the proposal is flatter than the experience modifications proposed,
B5: • Line of business 1 (currently does not use experience rating) | I5: this suggests the model is also correcting for differences between risks.
I6: Therefore, I would implement the proposal.
H8: (b) | I8: Not enough credibility is given to the actual experience because the standard loss ratios
I9: are increasing. Increase the credibility given to actual experience.
H11: (c) | I11: Do not use the proposed plan for line of business 2. The proposed standard loss ratios
I12: are steeper than the current ones and the flatter the ratio the better the plan.
I13: Also, the current plan has a lower efficiency test statistic than the proposed plan,
I14: which indicates the current plan performs better.
B20: • Line of business 2 (currently uses experience rating)
C35: Line of Business 2 | D35: Efficiency Test
C36: Current Plan | D36: 0.0346
C37: Proposed Plan | D37: 0.1184
B39: For both lines of business, assume that the cost of implementation is negligible.
A41: (a) | B41: For line of business 1, evaluate whether the new experience modification should be implemented.
A42: =INDEX('Point Grid'!$C$8:$I$26,MATCH($A$1,'Point Grid'!$A$8:$A$26,0),MATCH(A41,'Point Grid'!$C$7:$I$7,0)) -> 0.5
A43: 0.5
A45: (b) | B45: For line of business 1, describe a way to improve the results of the experience modification.
A46: =INDEX('Point Grid'!$C$8:$I$26,MATCH($A$1,'Point Grid'!$A$8:$A$26,0),MATCH(A45,'Point Grid'!$C$7:$I$7,0)) -> 0.5
A47: 0.5
A49: (c) | B49: For line of business 2, evaluate whether the proposed plan should be used.
A50: =INDEX('Point Grid'!$C$8:$I$26,MATCH($A$1,'Point Grid'!$A$8:$A$26,0),MATCH(A49,'Point Grid'!$C$7:$I$7,0)) -> 0.5
A51: 0.5

Sheet 11
A1: 11 | B1: Finished | G1: Navigator | I1: Solution
H2: (a) | L2: Here, Z = 0.75, A = 37,100 and E = 32,000.
A3: Points | B3: Consider the following sample of five insurance risks which have been experience rated:
A4: =INDEX('Point Grid'!B:B,MATCH('11'!A1,'Point Grid'!A:A,0)) -> 3.75 | B4: Risk | C4: Mod | D4: Manual Loss Ratio | E4: Standard Loss Ratio | I4: So X = | J4: =0.75*(D23/32000)+(1-0.75)*1 -> 1.11953125
B5: 1 | C5: 0.6 | D5: 0.6 | E5: 1
B6: 2 | C6: 0.79 | D6: 0.8 | E6: 1.01 | H6: (b) | I6: The standard loss ratio for risk 3 is its manual loss ratio divided by its experience mod.
B7: 3 | C7: X | D7: 0.96 | E7: Y | I7: i.e. = 0.96 / 1.1195 = 0.8575.
B8: 4 | C8: 1.1 | D8: 1.1 | E8: 1 | I8: If the experience rating plan is good, it should be close to the other standard loss ratios,
B9: 5 | C9: 1.14 | D9: 1.15 | E9: 1.01 | I9: i.e. near 1.00. Since it is materially lower, too much credibility is being placed on the
I10: actual experience. Lower the credibility to improve the effectiveness for risk 3.
B11: The actual claims for Risk 3 in the experience period are as follows:
C12: Claim # | D12: Incurred Loss Amount | H12: (c) | I12: I choose to place 25% credibility on the actual experience for risk 3.
C13: 001 | D13: 3200 | I13: The new experience mod for Risk 3 is then
C14: 002 | D14: 3000 | I14: X = 0.25 * (37,100 / 32,000) + (1 - 0.25)*1
C15: 003 | D15: 2800 | I15: =0.25*(37100/32000)+(1-0.25)*1 -> 1.03984375
C16: 004 | D16: 2700
C17: 005 | D17: 3300 | I17: Then the new standard loss ratio is 0.96 / 1.040 = 0.923
C18: 006 | D18: 2900 | I18: To compare the old and new plans I will use the efficiency test statistic
C19: 007 | D19: 10000 | I19: Note we assume no other risks are impacted by this recommendation.
C20: 008 | D20: 3100
C21: 009 | D21: 3000 | I21: Old Plan | L21: New Plan
C22: 010 | D22: 3100 | I22: Manual LR | J22: Standard LR | L22: Manual LR | M22: Standard LR
C23: Total | D23: =SUM(D13:D22) -> 37100 | I23: =D5 -> 0.6 | J23: =E5 -> 1 | L23: =D5 -> 0.6 | M23: =E5 -> 1
I24: =D6 -> 0.8 | J24: 1.01 | L24: =D6 -> 0.8 | M24: 1.01
B25: • Expected Losses for Risk 3 in the experience period = 32,000 | I25: 0.96 | J25: =D7/J4 -> 0.8575017446 | L25: 0.96 | M25: =D7/I15 -> 0.9232156273
B26: • Credibility factor = 0.75 | I26: 1.1 | J26: 1 | L26: 1.1 | M26: 1
I27: 1.15 | J27: 1.01 | L27: 1.15 | M27: 1.01
A28: (a) | B28: Calculate the modification factor, X, for Risk 3.
A29: =INDEX('Point Grid'!$C$8:$I$26,MATCH($A$1,'Point Grid'!$A$8:$A$26,0),MATCH(A28,'Point Grid'!$C$7:$I$7,0)) -> 0.5 | I29: =_xlfn.VAR.S(I23:I27) -> 0.05092 | J29: =_xlfn.VAR.S(J23:J27) -> 0.00437614707 | L29: =_xlfn.VAR.S(L23:L27) -> 0.05092 | M29: =_xlfn.VAR.S(M23:M27) -> 0.001362736722 | N29: <- Sample variances
A30: 0.5 | I30: Efficiency: | J30: =J29/I29 -> 0.08594161567 | L30: Efficiency: | M30: =M29/L29 -> 0.02676230797
A32: (b) | B32: Provide a recommendation to improve the effectiveness of experience rating for Risk 3 and | I32: Efficiency Test = sample variance of Standard LR / sample variance of Manual LR
A33: =INDEX('Point Grid'!$C$8:$I$26,MATCH($A$1,'Point Grid'!$A$8:$A$26,0),MATCH(A32,'Point Grid'!$C$7:$I$7,0)) -> 0.5 | B33: briefly justify. | I33: Since the new plan has a lower efficiency statistic than the old plan, it is an improvement.
A34: 0.5
A36: (c) | B36: Show, quantitatively, that the recommendation in part (b) above improves the plan. Assume no
A37: =INDEX('Point Grid'!$C$8:$I$26,MATCH($A$1,'Point Grid'!$A$8:$A$26,0),MATCH(A36,'Point Grid'!$C$7:$I$7,0)) -> 2.75 | B37: other risks are impacted by the recommendation.
A38: 2.75

Sheet 12
A1: 12 | B1: Finished | G1: Navigator | I1: Solution
H2: (a) | I2: Subset B has a significantly different loss distribution than Subset A even though
A3: Points | B3: An actuary is assessing the current Table M underlying the pricing of a book of business. All policies | I3: they have the same expected loss. The variance of B is greater than that of A which
A4: =INDEX('Point Grid'!B:B,MATCH('12'!A1,'Point Grid'!A:A,0)) -> 2 | B4: within the book of business have identical expected losses and are expected to have exactly one | I4: means B should have a higher insurance charge than A for the same entry ratio.
B5: claim during the policy period. The actuary divides the book of business into two subsets of | I5: Combining A and B to create one table will underprice B and overprice A.
B6: policies, Subset A and Subset B, and finds the following distributions of aggregate losses:
H7: (b) | I7: φ(x) = average amount above x divided by the expected amount.
I8: The expected loss for subset B is (10,000 * 6 + 40,000 * 3 + 80,000 * 1) / 10 = 26,000
H10: (i) | I10: φ(10,000) = [ (1 * (80,000 - 10,0000) + 3 * (40,000 - 10,000) )/10 ] / 26,000
I11: =(1*(80000-10000)+3*(40000-10000))/10/26000 -> 0.6153846154
H13: (ii) | I13: φ(40,000) = [ (1 * (80,000 - 40,0000) )/10 ] / 26,000
I14: =(80000-40000)/10/26000 -> 0.1538461538
H16: (iii) | I16: φ(80,000) = 0 as no claims exceed 80,000
H18: (c) | I18: 1.) Does the different line of business have the same expected risk size?
I19: 2.) The Table M calculated in part (b) only uses 10 risks so likely is not credible.
A35: (a) | B35: Discuss why the current Table M may not be appropriate for this book of business.
A36: =INDEX('Point Grid'!$C$8:$I$26,MATCH($A$1,'Point Grid'!$A$8:$A$26,0),MATCH(A35,'Point Grid'!$C$7:$I$7,0)) -> 0.5
A37: 0.5
A39: (b) | B39: Using the observations in Subset B, calculate the insurance charges associated with the following
A40: =INDEX('Point Grid'!$C$8:$I$26,MATCH($A$1,'Point Grid'!$A$8:$A$26,0),MATCH(A39,'Point Grid'!$C$7:$I$7,0)) -> 1 | B40: claim sizes:
A41: 1 | B41: i. 10,000
B42: ii. 40,000
B43: iii. 80,000
A45: (c) | B45: Briefly describe two considerations when using the Table M calculated in part (b) above to support
A46: =INDEX('Point Grid'!$C$8:$I$26,MATCH($A$1,'Point Grid'!$A$8:$A$26,0),MATCH(A45,'Point Grid'!$C$7:$I$7,0)) -> 0.5 | B46: the creation of a Table M for a different line of insurance.
A47: 0.5

Sheet 13
A1: 13 | B1: Finished | D1: Formula Sheet | G1: Navigator | I1: Solution
H2: (a) | I2: Let S be the aggregate loss variable. Then
A3: Points | B3: For a given policy that provides first dollar coverage, there is a 50% probability that no claims will | I3: Use the formula sheet and given information to find the parameters of the shifted
A4: =INDEX('Point Grid'!B:B,MATCH('13'!A1,'Point Grid'!A:A,0)) -> 2 | B4: occur during the policy period. Given that a claim does occur, the frequency distribution is shown | I4: Pareto distribution.
B5: below:
B6: Number of Claims | C6: Probability
B7: 1 | C7: 0.7
B8: 3 | C8: 0.2
B9: 5 | C9: 0.1
I10: Substitute the second equation into the first to get
B11: The claim-size variable X for this policy follows a shifted Pareto distribution with the following | I11: So α = 1.5
B12: characteristics: | I12: Then β = 3000(α - 1) = 1,500
B13: • eX(6,000) = 15,000
B14: • E[X] = 3,000 | I14: Then
B15: • E[X; 4,000] = 1,433.30
I16: Next, E[N] = 0.5 * 0 + 0.5 * ( 0.7 * 1 + 0.2 * 2 + 0.1 * 5) = 0.9
A17: (a) | B17: Calculate the expected aggregate loss in the layer 1,000 excess of 4,000 for this policy.
A18: =INDEX('Point Grid'!$C$8:$I$26,MATCH($A$1,'Point Grid'!$A$8:$A$26,0),MATCH(A17,'Point Grid'!$C$7:$I$7,0)) -> 1.5 | I18: Lastly, plug the above into the equation for E[S] to get
A19: 1.5 | I19: =0.9*(1558.85-1433.3) -> 112.995
A21: (b) | B21: Explain one difficulty that can arise when trying to fit an aggregate loss distribution function to | H21: (b) | I21: Excess losses are usually sparse and may not be sufficiently credible to consistently
A22: =INDEX('Point Grid'!$C$8:$I$26,MATCH($A$1,'Point Grid'!$A$8:$A$26,0),MATCH(A21,'Point Grid'!$C$7:$I$7,0)) -> 0.5 | B22: losses in an excess layer. | I22: fit a distribution without having some jump discontinuities.
A23: 0.5

Sheet 14
A1: 14 | B1: Finished | G1: Navigator | I1: Solution
H2: (a)
A3: Points | B3: An insured is written under a retrospective rating plan with a minimum and a maximum premium | I3: Here, e = 20,000 and c = 1.07 and E[A] = $825,000
A4: =INDEX('Point Grid'!B:B,MATCH('14'!A1,'Point Grid'!A:A,0)) -> 2 | B4: with the following parameters:
B5: Loss Conversion Factor | C5: 1.07 | I5: I is the net insurance charge,
B6: Expected Loss | C6: 825000
B7: Expenses | C7: 20000
B8: φ(rG) | C8: 0.4 | I8: So ψ(0.5) = 0.8 + 0.5 - 1 = 0.3
B9: φ(rH) | C9: 0.8 | I9: Thus, I = (0.4 - 0.3) * 825,000 = 82,500
B10: rG | C10: 1.21
B11: rH | C11: 0.5 | I11: Putting this all together yields the basic premium as
I12: B = 20,000 - 0.07 * 825,000 + 1.07 * 82,500
A13: (a) | B13: Calculate the basic premium. | I13: =C7-(C5-1)*C6+C5*82500 -> 50525
A14: =INDEX('Point Grid'!$C$8:$I$26,MATCH($A$1,'Point Grid'!$A$8:$A$26,0),MATCH(A13,'Point Grid'!$C$7:$I$7,0)) -> 1
A15: 1 | H15: (b) | I15: • There is an overlap between the per-occurrence limit and the aggregate limit set
I16: by the maximum premium, so it is not appropriate to load the full amount of
A17: (b) | B17: Upon renewal, the insured requests that a per-occurrence claim limit of $200,000 be added to the | I17: $400,000 into the premium. This results in overpricing.
A18: =INDEX('Point Grid'!$C$8:$I$26,MATCH($A$1,'Point Grid'!$A$8:$A$26,0),MATCH(A17,'Point Grid'!$C$7:$I$7,0)) -> 1 | B18: current policy. The pricing actuary estimates that, on average, the insured will have $400,000 of losses | I18: • The actuary should use a limited Table M or a Table L instead.
A19: 1 | B19: that exceed this per-occurrence limit during the next policy period. To calculate the expected increase
B20: to the basic premium, the actuary loads the $400,000 for expenses and profit.
B22: Fully discuss the appropriateness of the actuary's methodology.

Sheet 15
A1: 15 | B1: Finished | D1: Formula Sheet | F1: Navigator | I1: Solution
H2: (a) | I2: From the formula sheet, the excess severity function is
A3: Points | B3: An actuary is pricing a retrospectively rated policy with a per-occurrence limit of 20,000 and no | I3: We equate this with the fitted regression line to
A4: =INDEX('Point Grid'!B:B,MATCH('15'!A1,'Point Grid'!A:A,0)) -> 3.5 | B4: minimum or maximum ratable loss. | I4: determine the shifted Pareto parameters.
B6: Using claim data from a group of similar policies, the actuary fit the following regression line to the | I6: 16,112 = β / (α - 1)
B7: to the excess severity to estimate losses using the shifted Pareto distribution. The fitted regression | I7: 0.4467 = 1 / (α - 1)
B8: function is y = 0.4467x + 16112 with R2 = 0.9826. | I8: So α = 3.24 and β = 36,069
I10: Then the unlimited expected severity is E[A] = 16,112
I11: The expected severity limited to 20,000 is E[AD] = 10,108 by the formula sheet.
I12: So the expected excess severity is 16,112 - 10,108 = 6,004
I14: Multiply this by the expected number of claims which is E[N] = 15.
I15: So the expected aggregate excess is 15 * 6,004 = 90,060
I17: Then the basic premium = fixed expenses + (expected excess)*(1 + LAE % + UW Profit %)
I18: =E24+90060*(1+E21 +E25) -> 154469.6
B20: Given the following: | F20: Included in: | H20: (b) | I20: The expected limited loss is the expected limited severity multiplied by the expected claim count.
B21: Loss adjustment expenses as a percentage of loss | E21: 0.1 | F21: Loss conversion factor | I21: Using the result in part (a) this is 15 * 10,108 = 151,620
B22: Commission as a percentage of retrospective premium | E22: 0.09 | F22: Tax multiplier | I22: Actual loss | J22: =151620/2 -> 75810
B23: Premium tax as a percentage of retrospective premium | E23: 0.08 | F23: Tax multiplier
B24: Fixed overhead expenses | E24: 50000 | F24: Basic premium | I24: Plug into the retrospective rating formula
B25: Underwriting profit as a percentage of expected excess loss | E25: 0.06 | F25: Basic premium | I25: Here L = 75,810 and B = 154,469.60 and c = 1.1
I26: T is the tax multiplier, it equals 1 / (1 - 9% - 8%)
B27: • The number of claims for ground up losses is Poisson distributed with λ = 15.
I28: So the retrospective premium is
A29: (a) | B29: Calculate the basic premium. | I29: =(I18+(1+E21)*J22)*(1/(1-E22-E23)) -> 286579.0361
A30: =INDEX('Point Grid'!$C$8:$I$26,MATCH($A$1,'Point Grid'!$A$8:$A$26,0),MATCH(A29,'Point Grid'!$C$7:$I$7,0)) -> 2
A31: 2 | H31: (c) | I31: The R2 value is high and the fitted line is close to the observed values indicating a good fit.
I32: The regression line is linear and upward sloping which matches the usual shape of a
A33: (b) | B33: Assuming that actual limited losses equal half the expected limited losses, calculate the | I33: Pareto excess severity distribution.
A34: =INDEX('Point Grid'!$C$8:$I$26,MATCH($A$1,'Point Grid'!$A$8:$A$26,0),MATCH(A33,'Point Grid'!$C$7:$I$7,0)) -> 1 | B34: retrospective premium. | I34: Note the slope of the regression line is sensitive to the size of the largest claims so
A35: 1 | I35: minor variations in the largest claims could significantly change the distribution parameters.
A37: (c) | B37: Assess the actuary's decision to use the shifted Pareto distribution to estimate excess severity.
A38: =INDEX('Point Grid'!$C$8:$I$26,MATCH($A$1,'Point Grid'!$A$8:$A$26,0),MATCH(A37,'Point Grid'!$C$7:$I$7,0)) -> 0.5
A39: 0.5

Sheet 16
A1: 16 | B1: Finished | F1: Navigator | I1: Solution
H2: (a) | I2: The entry ratio for a limited Table M is the actual limited loss / expected limited loss.
A3: Points | B3: The loss experience of five similarly sized risks is shown in the table below: | I3: Risk | J3: Entry Ratio | L3: For the expected limited loss, use the average over all risks
A4: =INDEX('Point Grid'!B:B,MATCH('16'!A1,'Point Grid'!A:A,0)) -> 3 | C4: Risk | D4: Aggregate Unlimited Loss | E4: Aggregate Limited Loss | I4: 1 | J4: =E7/$L$4 -> 0.25 | L4: =E12/5 -> 120000
I5: 2 | J5: =E8/$L$4 -> 0.5
I6: 3 | J6: 0.75
C7: 1 | D7: 30000 | E7: 30000 | I7: 4 | J7: 0.5
C8: 2 | D8: 95000 | E8: 60000 | I8: 5 | J8: 3
C9: 3 | D9: 110000 | E9: 90000
C10: 4 | D10: 160000 | E10: 60000 | I10: Limited Table M
C11: 5 | D11: 415000 | E11: 360000 | I11: Entry Ratio | J11: # Risks | K11: # Risks Over | L11: % Risks Over | M11: φ(r)
C12: Total | D12: =SUM(D7:D11) -> 810000 | E12: =SUM(E7:E11) -> 600000 | I12: 0 | J12: =COUNTIF($J$4:$J$8,"="&I12) -> 0 | K12: =COUNTIF($J$4:$J$8,">"&I12) -> 5 | L12: =K12/COUNT($I$4:$I$8) -> 1 | M12: =M13+(I13-I12)*L12 -> 1
B13: Limited losses have a per-occurrence limit of 50,000 applied. | I13: 0.25 | J13: =COUNTIF($J$4:$J$8,"="&I13) -> 1 | K13: =COUNTIF($J$4:$J$8,">"&I13) -> 4 | L13: =K13/COUNT($I$4:$I$8) -> 0.8 | M13: 0.75
I14: 0.5 | J14: 2 | K14: 2 | L14: 0.4 | M14: 0.55
A15: (a) | B15: Construct a Limited Loss Table M based on the experience above, displaying entry ratios | I15: 0.75 | J15: 1 | K15: 1 | L15: 0.2 | M15: 0.45
A16: =INDEX('Point Grid'!$C$8:$I$26,MATCH($A$1,'Point Grid'!$A$8:$A$26,0),MATCH(A15,'Point Grid'!$C$7:$I$7,0)) -> 1.5 | B16: ranging from 0 to 3 in increments of 0.5 and the corresponding insurance charges. | I16: 1 | J16: 0 | K16: 1 | L16: 0.2 | M16: 0.4
A17: 1.5 | I17: 1.5 | J17: 0 | K17: 1 | L17: 0.2 | M17: 0.3
I18: 2 | J18: 0 | K18: 1 | L18: 0.2 | M18: 0.2
A19: (b) | B19: An insured similar to the risks above is evaluating three potential policies: | I19: 2.5 | J19: 0 | K19: 1 | L19: 0.2 | M19: =M20+(I20-I19)*L19 -> 0.1
A20: =INDEX('Point Grid'!$C$8:$I$26,MATCH($A$1,'Point Grid'!$A$8:$A$26,0),MATCH(A19,'Point Grid'!$C$7:$I$7,0)) -> 1.5 | B20: 1. A guaranteed cost policy | I20: 3 | J20: 1 | K20: 0 | L20: 0 | M20: 0
A21: 1.5 | B21: 2. A large dollar deductible policy with a 50,000 per-occurrence limit
B22: 3. A retrospectively rated policy with an underlying 200,000 aggregate limit and no | I22: Make sure you add rows that correspond to observed entry ratios.
B23: per-occurrence limit.
H24: (b) | I24: 1.) Advantage: Stable premium known at policy inception.
B25: Given the following: | I25: Disadvantage: No reduction in premium for good experience.
B26: • The insured would like to minimize cost | I26: 2.) Advantage: Lower cost compared to GCP since the insured is responsible for losses below the deductible
B27: • Maintaining a stable, predictable cash flow is a priority for the insured | I27: Disadvantage: Potential to pay a lot if there are a lot of claims below the deductible.
B28: • The insured has recently implement a successful claim severity reduction program. | I28: 3.) Advantage: The reduced severity from their program will likely lead to lower actual losses which
I29: will decrease premiums.
B30: Briefly discuss one advantage and one disadvantage of each of the three policies from | I30: Disadvantage: Potential to pay a lot if their loss experience is poor.
B31: the perspective of this insured.

Sheet 17
A1: 17 | B1: Finished | F1: Navigator | I1: Solution
H2: (a) | I2: Technical Ratio = Expected Loss Ratio + Expected Commission
A3: Points | B3: An insurer is deciding on a proportional reinsurance strategy for the upcoming two years.
A4: =INDEX('Point Grid'!B:B,MATCH('17'!A1,'Point Grid'!A:A,0)) -> 3 | B4: A reinsurer proposed the following sliding-scale commission with a carry-forward | I4: Year 1
B5: provision. The contract will be identical for the second year. | I5: Range | J5: Loss Ratio | K5: Commission | L5: Probability
B6: Minimum Commission: | D6: 12.5% at an 80% loss ratio | I6: 0% - 50% | J6: =C17 -> 0.43 | K6: 0.35 | L6: =D17 -> 0.15
B7: Sliding 1:1 to | D7: 27.5% at a 65% loss ratio | I7: 50% - 60% | J7: =C18 -> 0.57 | K7: =35%-0.5*(J7-50%) -> 0.315 | L7: =D18 -> 0.25
B8: Sliding 0.5:1 to a Maximum | D8: 35% at a 50% loss ratio | I8: 60% - 80% | J8: =C19 -> 0.68 | K8: =27.5%-1*(J8-65%) -> 0.245 | L8: 0.45
I9: Over 80% | J9: 0.85 | K9: 0.125 | L9: 0.15
B10: Assume the insurer places no value on the carry-forward provision after the second year, and
B11: ignore the time value of money (i.e., assume a 0% interest rate). | I11: Year 1 Technical Ratio = Sum [(Loss Ratio + Commission)*Probability]
I12: =SUMPRODUCT(J6:J9,L6:L9)+SUMPRODUCT(K6:K9,L6:L9) -> 0.90075
B13: The following table details the expected loss distribution of the underlying business:
B14: Range of Loss Ratios | C14: Average Loss Ratio in Range | D14: Probability of Being in Range | I14: Year 2
I15: Range | J15: Loss Ratio | K15: Commission LR < 80% | L15: New LR | M15: Commission LR >= 80% | N15: Probability
I16: 0% - 50% | J16: =C17 -> 0.43 | K16: =K6 -> 0.35 | L16: =J16+(85%-80%) -> 0.48 | M16: 0.35 | N16: =D17 -> 0.15
B17: 0% – 50% | C17: 0.43 | D17: 0.15 | I17: 50% - 60% | J17: =C18 -> 0.57 | K17: =K7 -> 0.315 | L17: =J17+(85%-80%) -> 0.62 | M17: =35% -0.5*(L17-50%) -> 0.29 | N17: =D18 -> 0.25
B18: 50% – 60% | C18: 0.57 | D18: 0.25 | I18: 60% - 80% | J18: 0.68 | K18: 0.245 | L18: 0.73 | M18: =27.5% - 1*(73%-65%) -> 0.195 | N18: 0.45
B19: 60% – 80% | C19: 0.68 | D19: 0.45 | I19: Over 80% | J19: 0.85 | K19: 0.125 | L19: 0.9 | M19: 0.125 | N19: 0.15
B20: 80% or above | C20: 0.85 | D20: 0.15
I21: The carryforward provision increases the loss ratio by the amount which the
A22: (a) | B22: Calculate the reinsurer's expected technical ratio for each year if the insurer buys the | I22: actual loss ratio exceeds the maximum (in this case 80%).
A23: =INDEX('Point Grid'!$C$8:$I$26,MATCH($A$1,'Point Grid'!$A$8:$A$26,0),MATCH(A22,'Point Grid'!$C$7:$I$7,0)) -> 3 | B23: sliding-scale commission contract for both years. | I23: Split into two cases, the first when the actual LR is less than 80%. This happens 85% of the time.
A24: 3 | I24: The second when the actual LR is greater than 80%. This happens 15% of the time.
I26: Expected Commission
I27: 1st Case | J27: =SUMPRODUCT(K16:K19,N16:N19) -> 0.26025
I28: 2nd Case | J28: =SUMPRODUCT(M16:M19,N16:N19) -> 0.2315
I29: Wtd Avg | J29: =SUM(D17:D19)*J27+D20*J28 -> 0.2559375
I31: Year 2 Technical Ratio
I32: =SUMPRODUCT(J16:J19,N16:N19)+J29 -> 0.8964375

Sheet 18
A1: 18 | B1: Finished | F1: Navigator | H1: Solution
G2: (a) | H2: Use a volume weighted average loss cost for the layer
A3: Points | B3: A property insurer has an existing Quota Share reinsurance treaty in place. The insurer would | H3: =SUMPRODUCT(C21:C25,E21:E25)/SUM(C21:C25) -> 0.334
A4: =INDEX('Point Grid'!B:B,MATCH('18'!A1,'Point Grid'!A:A,0)) -> 5.5 | B4: like to further reduce its net loss exposure by exploring a proposed Property Per Risk Excess
B5: reinsurance treaty. Given the following: | G5: (b) | H5: Loss cost = Exposure * (Pure Risk Premium)
B6: Existing Quota Share Reinsurance Treaty | H6: Exposure = G(1,000,000/MPL) - G(500,000/MPL) where MPL is the maximum possible loss.
B7: • 25% Quota Share
B8: • 15% Ceding Commission | H8: MPL = 1,000,000
H9: So exposure = G(100%) - G(50%).
B10: Proposed Property Per Risk Excess Reinsurance Treaty | H10: G(100%) = 1
B11: • Subject premium of $100 million net of the Quota Share reinsurance treaty | H11: G(50%) = (1 - 0.32428^0.5) / (1 - 0.32428) = | L11: =(1-0.32428^0.5)/(1-0.32428) -> 0.6371634987
B12: • Cover net losses in excess of $500,000, up to a limit of $500,000
B13: • The Quota Share reinsurance treaty will inure to the benefit of this treaty | H13: Thus, exposure = | J13: =1-L11 -> 0.3628365013
B14: • Ceded Loss Ratio for this Excess layer is estimated to be 90%
H15: Pure risk premium = premium weighted trended ultimate subject loss ratio
B16: The table below illustrates the insurer's historical experience data net of the Quota Share that | H16: =SUMPRODUCT(D21:D25,C21:C25)/SUM(C21:C25) -> 0.8
B17: is subject to the proposed Property Per Risk Excess layer:
B18: Historical Accident Year | C18: On Level Subject Earned Premium ($ millions) | D18: On Level Trended Ultimate Subject Loss Ratio | E18: On Level Trended Ultimate Layer Loss Cost | H18: Loss cost = | I18: =H16*J13 -> 0.290269201
G20: (c) | H20: Loss cost = Z *(experience loss cost) + (1 - Z)*(exposure loss cost)
B21: 2014 | C21: 100 | D21: 0.75 | E21: 0.25 | H21: Z = 80%
B22: 2015 | C22: 120 | D22: 0.75 | E22: 0.3
B23: 2016 | C23: 150 | D23: 0.9 | E23: 0.45 | H23: Experience loss cost = premium weighted layer loss cost
B24: 2017 | C24: 80 | D24: 0.75 | E24: 0.24 | H24: =SUMPRODUCT(C21:C25,E21:E25)/SUM(C21:C25) -> 0.334
B25: 2018 | C25: 100 | D25: 0.8 | E25: 0.36
H26: Exposure loss cost was found in part (b)
A27: (a) | B27: Calculate the loss cost of the Property Per Risk Excess layer using all 5 years of historical
A28: =INDEX('Point Grid'!$C$8:$I$26,MATCH($A$1,'Point Grid'!$A$8:$A$26,0),MATCH(A27,'Point Grid'!$C$7:$I$7,0)) -> 0.5 | B28: experience data provided. | H28: credibility weighted loss cost = | K28: =0.8*H24+(1-0.8)*I18 -> 0.3252538402
A29: 0.5
G30: (d) | H30: Expected Subject Loss Ratio = | K30: =SUMPRODUCT(C21:C25,D21:D25)/SUM(C21:C25) -> 0.8
A31: (b) | B31: Assume that the following exposure curve definition applies to the Property Per Risk Excess | H31: So the expected loss net of the quota share is 80 million.
A32: =INDEX('Point Grid'!$C$8:$I$26,MATCH($A$1,'Point Grid'!$A$8:$A$26,0),MATCH(A31,'Point Grid'!$C$7:$I$7,0)) -> 1 | B32: layer:
A33: 1 | H33: ="From part (c) the ceded loss cost is "&TEXT(K28,"#.00%") -> From part (c) the ceded loss cost is 32.53%
B34: where G(x) represents the ratio of pure risk premiums retained by the insurer, and x represents | H34: Since the ceded loss ratio is 90% this means the ceded premium per $ of premium is
B35: the ground up loss normalized to the maximum possible loss of $1 million. | H35: =TEXT(K28,"0.00%") &" / 90% = " &TEXT(K28/90%,"0.00%") -> 32.53% / 90% = 36.14%
H36: So with an initial $100 million of subject premium the ceded premium is
B37: Calculate the loss cost of the Property Per Risk Excess layer retained by the reinsurer based on | H37: =100*10^6*K28/0.9 -> 36139315.58
B38: the exposure curve. | H38: and the ceded loss is
H39: =K28*100*10^6 -> 32525384.02
A40: (c) | B40: Calculate the loss cost of the Property Per Risk Excess layer using a blend of the experience
A41: =INDEX('Point Grid'!$C$8:$I$26,MATCH($A$1,'Point Grid'!$A$8:$A$26,0),MATCH(A40,'Point Grid'!$C$7:$I$7,0)) -> 0.5 | B41: loss cost and the exposure loss cost based on a credibility weight of 80%. | H41: Thus Profit = subject premium - (expected loss - ceded loss) - ceded premium - expenses
A42: 0.5 | H42: =100*10^6 -(80*10^6 - H39) - H37 -15*10^6 -> 1386068.442
A44: (d) | B44: The insurer's historical gross expenses are estimated to be 15% of historical gross premiums. | G44: (e) | H44: The subject premium prior to the quota share is net subject premium / 0.75
A45: =INDEX('Point Grid'!$C$8:$I$26,MATCH($A$1,'Point Grid'!$A$8:$A$26,0),MATCH(A44,'Point Grid'!$C$7:$I$7,0)) -> 2 | B45: Calculate the insurer's expected net underwriting profit after application of both the existing | H45: The quota share ceded premium is 25% of the above.
A46: 2 | B46: Quota Share reinsurance treaty and the proposed Property Per Risk Excess reinsurance treaty. | H46: Quota share ceded loss is the ultimate loss ratio multiplied by the ceded premium
H47: Ceding Commission is 15% of the ceded premium
B48: The insurer is also exploring the following proposed modifications to the Quota Share | H48: The profit commission is max(0, ceded premium - ceded loss - ceding commission - profit margin)
B49: reinsurance treaty: | H49: Working in $ millions we have
B50: • Option 1: Profit Commission equal to 100% of reinsurer profit above a 5% reinsurer margin | I50: On-Level | J50: Trd. Ult | K50: Ceded | L50: Ceded | M50: Ceding | N50: Profit | O50: Profit
B51: • Option 2: 20% Ceding Commission | H51: AY | I51: Subject EP | J51: Subject LR | K51: Premium | L51: Loss | M51: Commission | N51: Margin | O51: Commission
H52: 2014 | I52: =C21 -> 100 | J52: =D21 -> 0.75 | K52: =I52/0.75*0.25 -> 33.33333333 | L52: =I52/0.75*J52*0.25 -> 25 | M52: =15%*K52 -> 5 | N52: =5%*K52 -> 1.666666667 | O52: =MAX(0,K52-L52-M52-N52) -> 1.666666667
A53: (e) | B53: Calculate the 5-year weighted average ratio of profit commission to ceded premium for the | H53: 2015 | I53: =C22 -> 120 | J53: =D22 -> 0.75 | K53: =I53/0.75*0.25 -> 40 | L53: =I53/0.75*J53*0.25 -> 30 | M53: =15%*K53 -> 6 | N53: =5%*K53 -> 2 | O53: =MAX(0,K53-L53-M53-N53) -> 2
A54: =INDEX('Point Grid'!$C$8:$I$26,MATCH($A$1,'Point Grid'!$A$8:$A$26,0),MATCH(A53,'Point Grid'!$C$7:$I$7,0)) -> 1 | B54: Quota Share reinsurance treaty using the historical experience data provided. | H54: 2016 | I54: 150 | J54: 0.9 | K54: =I54/0.75*0.25 -> 50 | L54: 45 | M54: 7.5 | N54: 2.5 | O54: 0
A55: 1 | H55: 2017 | I55: 80 | J55: 0.75 | K55: =I55/0.75*0.25 -> 26.66666667 | L55: 20 | M55: 4 | N55: 1.333333333 | O55: 1.333333333
H56: 2018 | I56: 100 | J56: 0.8 | K56: =I56/0.75*0.25 -> 33.33333333 | L56: 26.66666667 | M56: 5 | N56: 1.666666667 | O56: 0
A57: (f) | B57: Briefly describe one advantage and one disadvantage of implementing the proposed profit | H57: TOTAL | I57: =SUM(I52:I56) -> 550 | K57: =SUM(K52:K56) -> 183.3333333 | L57: =SUM(L52:L56) -> 146.6666667 | M57: =SUM(M52:M56) -> 27.5 | N57: =SUM(N52:N56) -> 9.166666667 | O57: =SUM(O52:O56) -> 5
A58: =INDEX('Point Grid'!$C$8:$I$26,MATCH($A$1,'Point Grid'!$A$8:$A$26,0),MATCH(A57,'Point Grid'!$C$7:$I$7,0)) -> 0.5 | B58: commission versus the higher ceding commission from the insurer's perspective.
A59: 0.5 | H59: Ratio of Profit Commission to Ceded Premium = | L59: =O57/K57 -> 0.02727272727
G61: (f) | H61: Advantage: Proposed profit commission allows the insurer to benefit from favorable results
H62: with good underwriting performance.
H64: Disadvantage: The expected profit commission is 2.73% of ceded premium.
H65: Adding this to the 15% ceding commission for Option 1 results in a lower figure than Option 2.
H66: Further, the ceding commission is guaranteed while the profit commission isn't, making Option 2
H67: more appealing.

Sheet 19
A1: 19 | B1: Finished | F1: Navigator | I1: Solution
H2: (a) | I2: Using the graph, 750 million corresponds to a return period of 25 years.
A3: Points | B3: An insurance company is deciding between three reinsurance treaty options from the same | I3: This corresponds to a 1/25 = 0.04 = 4% probability.
A4: =INDEX('Point Grid'!B:B,MATCH('19'!A1,'Point Grid'!A:A,0)) -> 1.75 | B4: reinsurance company based on the following output from a catastrophe model:
H5: (b) | I5: Option 1 is the Quota Share because it has the same shape as the gross loss but
I6: scaled by a percentage. It has the same coefficient of variation for both the
I7: retained and ceded losses which is what we expect when a fixed percentage is
I8: ceded.
I10: The Quota Share treaty at 25 years is 675 million retained compared to 750 million
I11: on a gross basis. Therefore the Quota Share percentage is (750 - 675) / 750 = 10%
H13: (c) | I13: Option 3 cedes the more in the tail of the risk which has greater volatility.
I14: This means there is more uncertainty in the amounts covered by the reinsurance,
I15: so the reinsurer will need more capital to support the potential losses. They
I16: will charge a higher risk load or profit margin for retaining that capital, making
I17: Option 3 more expensive.
B30: Insurance Company | C30: Gross | D30: Option 1 | E30: Option 2 | F30: Option 3
C31: (No Reinsurance)
B32: Retained AAL | C32: $500 million | D32: $450 million | E32: $486 million | F32: $488 million
B33: Coefficient of Variation of Retained Loss | C33: 0.25 | D33: 0.25 | E33: 0.24 | F33: 0.22
B35: Coefficient of Variation of Ceded Loss | C35: N/A | D35: 0.25 | E35: 0.76 | F35: 1.69
A38: (a) | B38: Calculate the probability that the insurance company retains more than $750 million of loss on
A39: =INDEX('Point Grid'!$C$8:$I$26,MATCH($A$1,'Point Grid'!$A$8:$A$26,0),MATCH(A38,'Point Grid'!$C$7:$I$7,0)) -> 0.5 | B39: a gross basis.
A40: 0.5
A42: (b) | B42: One of the options represents a Quota Share reinsurance treaty. Justify which of the three options
A43: =INDEX('Point Grid'!$C$8:$I$26,MATCH($A$1,'Point Grid'!$A$8:$A$26,0),MATCH(A42,'Point Grid'!$C$7:$I$7,0)) -> 0.75 | B43: it is, and state the Quota Share percentage.
A44: 0.75
A46: (c) | B46: Describe a reason why the reinsurance premium for Option 3 may be higher compared to Option 1.
A47: =INDEX('Point Grid'!$C$8:$I$26,MATCH($A$1,'Point Grid'!$A$8:$A$26,0),MATCH(A46,'Point Grid'!$C$7:$I$7,0)) -> 0.5
A48: 0.5
